[Event "NJSK 2023 Jeugd B"]
[Site "Almelo, Netherlands"]
[Date "2023.05.02"]
[Round "3.4"]
[White "Ritzerveld, Noah"]
[Black "Van Hesselingen, Guido"]
[Result "0-1"]
[TimeControl "90min/40moves + 30min + 30sec/move"]
[WhiteElo "1776"]
[BlackElo "1924"]

1. e4 {[%clk 01:30:57]} {[%emt 00:00:03]} e5 {[%clk 01:30:54]} {[%emt
00:00:06]} 2. Nf3 {[%clk 01:31:20]} {[%emt 00:00:07]} Nc6 {[%clk 01:31:19]}
{[%emt 00:00:06]} 3. Bc4 {[%clk 01:31:38]} {[%emt 00:00:11]} Bc5 {[%clk
01:31:38]} {[%emt 00:00:11]} 4. c3 {[%clk 01:31:59]} {[%emt 00:00:09]} Nf6
{[%clk 01:32:00]} {[%emt 00:00:09]} 5. d4 {[%clk 01:32:13]} {[%emt 00:00:15]}
exd4 {[%clk 01:32:22]} {[%emt 00:00:09]} 6. e5 {[%clk 01:32:35]} {[%emt
00:00:08]} d5 {[%clk 01:32:41]} {[%emt 00:00:11]} 7. Bb5 {[%clk 01:32:56]}
{[%emt 00:00:08]} Ne4 {[%clk 01:33:00]} {[%emt 00:00:12]} 8. cxd4 {[%clk
01:33:19]} {[%emt 00:00:06]} Bb6 {[%clk 01:33:24]} {[%emt 00:00:06]} 9. Nc3
{[%clk 01:33:39]} {[%emt 00:00:11]} O-O {[%clk 01:30:36]} {[%emt 00:03:17]} 10.
Be3 {[%clk 01:33:32]} {[%emt 00:00:36]} f5 {[%clk 01:28:05]} {[%emt 00:03:02]}
11. exf6 {[%clk 01:32:44]} {[%emt 00:01:18]} Nxf6 {[%clk 01:26:19]} {[%emt
00:02:16]} 12. Bxc6 {[%clk 01:26:23]} {[%emt 00:06:50]} bxc6 {[%clk 01:26:39]}
{[%emt 00:00:09]} 13. Ne5 {[%clk 01:25:48]} {[%emt 00:01:06]} Qd6 {[%clk
01:04:36]} {[%emt 00:22:34]} 14. f4 {[%clk 01:24:04]} {[%emt 00:02:13]} c5
{[%clk 01:01:28]} {[%emt 00:03:39]} 15. O-O {[%clk 00:56:57]} {[%emt 00:27:37]}
cxd4 {[%clk 00:54:12]} {[%emt 00:07:46]} 16. Bxd4 {[%clk 00:57:14]} {[%emt
00:00:12]} c5 {[%clk 00:54:09]} {[%emt 00:00:34]} 17. Bf2 {[%clk 00:57:02]}
{[%emt 00:00:40]} Ba6 {[%clk 00:44:09]} {[%emt 00:10:31]} 18. Re1 {[%clk
00:55:26]} {[%emt 00:02:06]} Rad8 {[%clk 00:39:20]} {[%emt 00:05:19]} 19. Qa4
{[%clk 00:49:14]} {[%emt 00:06:42]} Bb7 {[%clk 00:38:43]} {[%emt 00:01:07]} 20.
Nb5 {[%clk 00:46:04]} {[%emt 00:03:40]} Qb8 {[%clk 00:38:08]} {[%emt 00:01:04]}
21. Nc3 {[%clk 00:36:26]} {[%emt 00:10:09]} Qc7 {[%clk 00:31:19]} {[%emt
00:07:19]} 22. Nb5 {[%clk 00:30:32]} {[%emt 00:06:24]} Qc8 {[%clk 00:30:51]}
{[%emt 00:00:58]} 23. Nc3 {[%clk 00:24:08]} {[%emt 00:06:54]} Kh8 {[%clk
00:28:17]} {[%emt 00:03:04]} 24. Rad1 {[%clk 00:20:32]} {[%emt 00:04:06]} Ng4
{[%clk 00:20:41]} {[%emt 00:08:07]} 25. Nxg4 {[%clk 00:16:49]} {[%emt
00:04:13]} Qxg4 {[%clk 00:21:04]} {[%emt 00:00:06]} 26. h3 {[%clk 00:14:09]}
{[%emt 00:03:10]} Qg6 {[%clk 00:19:05]} {[%emt 00:02:30]} 27. Re7 {[%clk
00:13:29]} {[%emt 00:01:10]} Bc6 {[%clk 00:17:11]} {[%emt 00:02:24]} 28. Nb5
{[%clk 00:09:16]} {[%emt 00:04:42]} d4 {[%clk 00:16:30]} {[%emt 00:01:11]} 29.
g3 {[%clk 00:08:19]} {[%emt 00:01:27]} Rxf4 {[%clk 00:16:35]} {[%emt 00:00:25]}
30. Rde1 {[%clk 00:08:00]} {[%emt 00:00:50]} Rdf8 {[%clk 00:16:32]} {[%emt
00:00:32]} 31. R7e6 {[%clk 00:07:30]} {[%emt 00:01:00]} Rxf2 {[%clk 00:13:15]}
{[%emt 00:03:47]} 32. Rxg6 {[%clk 00:07:06]} {[%emt 00:00:54]} hxg6 {[%clk
00:13:40]} {[%emt 00:00:06]} 33. a3 {[%clk 00:02:08]} {[%emt 00:05:28]} Rg2+
{[%clk 00:13:34]} {[%emt 00:00:36]} 34. Kh1 {[%clk 00:02:27]} {[%emt 00:00:10]}
Rxg3+ {[%clk 00:13:57]} {[%emt 00:00:06]} 35. Kh2 {[%clk 00:02:40]} {[%emt
00:00:18]} Rg2+ {[%clk 00:14:22]} {[%emt 00:00:05]} 36. Kh1 {[%clk 00:03:04]}
{[%emt 00:00:06]} Rg4+ {[%clk 00:14:44]} {[%emt 00:00:07]} 0-1

[Event "NJSK 2023 Jeugd B"]
[Site "Almelo, Netherlands"]
[Date "2023.05.02"]
[Round "3.5"]
[White "Blom, Rens"]
[Black "Ponomarev, Ivan"]
[Result "1/2-1/2"]
[TimeControl "90min/40moves + 30min + 30sec/move"]
[WhiteElo "1747"]
[BlackElo "1788"]

1. c4 {[%clk 01:30:57]} {[%emt 00:00:03]} e6 {[%clk 01:30:57]} {[%emt
00:00:03]} 2. e4 {[%clk 01:31:22]} {[%emt 00:00:05]} d5 {[%clk 01:31:23]}
{[%emt 00:00:03]} 3. exd5 {[%clk 01:31:47]} {[%emt 00:00:05]} exd5 {[%clk
01:31:48]} {[%emt 00:00:05]} 4. cxd5 {[%clk 01:32:13]} {[%emt 00:00:04]} Nf6
{[%clk 01:32:13]} {[%emt 00:00:05]} 5. Bb5+ {[%clk 01:32:37]} {[%emt 00:00:06]}
Nbd7 {[%clk 01:32:38]} {[%emt 00:00:05]} 6. Nc3 {[%clk 01:33:00]} {[%emt
00:00:08]} Bd6 {[%clk 01:33:02]} {[%emt 00:00:05]} 7. Nf3 {[%clk 01:30:54]}
{[%emt 00:02:36]} O-O {[%clk 01:33:23]} {[%emt 00:00:10]} 8. O-O {[%clk
01:31:06]} {[%emt 00:00:17]} Nb6 {[%clk 01:33:06]} {[%emt 00:00:48]} 9. d4
{[%clk 01:29:37]} {[%emt 00:01:59]} h6 {[%clk 01:30:43]} {[%emt 00:02:52]} 10.
h3 {[%clk 01:26:00]} {[%emt 00:04:07]} Nbxd5 {[%clk 01:25:13]} {[%emt
00:06:00]} 11. Ne5 {[%clk 01:13:20]} {[%emt 00:13:10]} c6 {[%clk 01:17:07]}
{[%emt 00:08:36]} 12. Nxd5 {[%clk 01:00:26]} {[%emt 00:13:24]} Nxd5 {[%clk
01:12:50]} {[%emt 00:04:46]} 13. Bc4 {[%clk 00:56:49]} {[%emt 00:04:08]} Be6
{[%clk 01:04:01]} {[%emt 00:09:20]} 14. f4 {[%clk 00:49:21]} {[%emt 00:07:57]}
Nxf4 {[%clk 00:39:34]} {[%emt 00:24:57]} 15. Bxf4 {[%clk 00:33:12]} {[%emt
00:16:40]} Bxe5 {[%clk 00:39:52]} {[%emt 00:00:11]} 16. dxe5 {[%clk 00:32:59]}
{[%emt 00:00:43]} Bxc4 {[%clk 00:29:18]} {[%emt 00:11:04]} 17. Qg4 {[%clk
00:28:14]} {[%emt 00:05:15]} Be6 {[%clk 00:28:59]} {[%emt 00:00:47]} 18. Qg3
{[%clk 00:27:55]} {[%emt 00:00:51]} Kh7 {[%clk 00:27:43]} {[%emt 00:01:47]} 19.
Rfd1 {[%clk 00:26:11]} {[%emt 00:02:13]} Qb6+ {[%clk 00:27:35]} {[%emt
00:00:38]} 20. Qf2 {[%clk 00:25:12]} {[%emt 00:01:29]} Qxf2+ {[%clk 00:27:45]}
{[%emt 00:00:21]} 21. Kxf2 {[%clk 00:25:40]} {[%emt 00:00:02]} Rfd8 {[%clk
00:27:35]} {[%emt 00:00:39]} 22. Rd6 {[%clk 00:22:06]} {[%emt 00:04:05]} Bd5
{[%emt 00:06:49]} 23. Rd1 {[%clk 00:19:56]} Kg8 {[%clk 00:21:58]} {[%emt
00:02:25]} 24. a3 {[%clk 00:18:13]} {[%emt 00:02:14]} Kf8 {[%clk 00:21:25]}
{[%emt 00:01:03]} 25. Be3 {[%clk 00:16:29]} {[%emt 00:02:14]} Ke8 {[%clk
00:18:12]} {[%emt 00:03:42]} 26. Kg3 {[%clk 00:14:37]} {[%emt 00:02:23]} Rd7
{[%clk 00:15:42]} {[%emt 00:02:58]} 27. Rxd7 {[%clk 00:11:05]} {[%emt
00:04:04]} Kxd7 {[%clk 00:16:10]} {[%emt 00:00:02]} 28. Kf4 {[%clk 00:11:25]}
{[%emt 00:00:10]} Ke6 {[%clk 00:15:12]} {[%emt 00:01:28]} 29. h4 {[%clk
00:10:59]} {[%emt 00:00:57]} a6 {[%clk 00:12:34]} {[%emt 00:03:07]} 30. g4
{[%clk 00:08:59]} {[%emt 00:02:30]} Rg8 {[%clk 00:11:15]} {[%emt 00:01:49]} 31.
Re1 {[%clk 00:07:23]} {[%emt 00:02:06]} b5 {[%clk 00:06:54]} {[%emt 00:04:51]}
32. b4 {[%clk 00:05:40]} {[%emt 00:02:14]} Rd8 {[%clk 00:06:01]} {[%emt
00:01:21]} 33. Bb6 {[%clk 00:04:56]} {[%emt 00:01:15]} Rd7 {[%clk 00:06:24]}
{[%emt 00:00:06]} 34. Bc5 {[%clk 00:05:06]} {[%emt 00:00:21]} Bc4 {[%clk
00:05:57]} {[%emt 00:00:53]} 35. g5 {[%clk 00:04:36]} {[%emt 00:01:04]} h5
{[%clk 00:04:10]} {[%emt 00:02:16]} 36. Bf8 {[%clk 00:03:19]} {[%emt 00:01:48]}
g6 {[%clk 00:04:16]} {[%emt 00:00:24]} 37. Bd6 {[%clk 00:03:44]} {[%emt
00:00:05]} Ra7 {[%clk 00:01:13]} {[%emt 00:03:33]} 38. Bc5 {[%clk 00:02:59]}
{[%emt 00:01:15]} Ra8 {[%clk 00:01:38]} {[%emt 00:00:05]} 39. Rd1 {[%clk
00:01:46]} {[%emt 00:01:43]} Bd5 {[%clk 00:02:06]} {[%emt 00:00:02]} 40. Bb6
{[%clk 00:01:31]} {[%emt 00:00:45]} a5 {[%clk 00:00:58]} {[%emt 00:01:38]} 41.
bxa5 {[%clk 00:29:06]} {[%emt 00:02:55]} c5 {[%clk 00:28:44]} {[%emt 00:02:43]}
42. Bxc5 {[%clk 00:29:03]} {[%emt 00:00:35]} Rxa5 {[%clk 00:28:17]} {[%emt
00:00:56]} 43. Rc1 {[%clk 00:26:56]} {[%emt 00:02:37]} Kd7 {[%clk 00:20:37]}
{[%emt 00:08:07]} 44. Rc2 {[%clk 00:22:45]} {[%emt 00:04:44]} Ra8 {[%clk
00:19:22]} {[%emt 00:01:44]} 45. Bd6 {[%clk 00:20:18]} {[%emt 00:02:58]} Bc4
{[%clk 00:17:54]} {[%emt 00:01:58]} 46. Ke4 {[%clk 00:16:39]} {[%emt 00:04:09]}
Kc6 {[%clk 00:15:30]} {[%emt 00:02:52]} 47. Kd4 {[%clk 00:15:45]} {[%emt
00:01:26]} Kb6 {[%clk 00:13:39]} {[%emt 00:02:20]} 48. Rc3 {[%clk 00:14:26]}
{[%emt 00:01:50]} Ra4 {[%clk 00:08:09]} {[%emt 00:06:00]} 49. Bb4 {[%clk
00:13:43]} {[%emt 00:01:13]} Kc6 {[%clk 00:08:20]} {[%emt 00:00:19]} 50. Rf3
{[%clk 00:13:10]} {[%emt 00:01:02]} Ra8 {[%clk 00:07:08]} {[%emt 00:01:41]} 51.
Bd6 {[%clk 00:12:43]} {[%emt 00:00:59]} Ra4 {[%clk 00:06:18]} {[%emt 00:01:20]}
1/2-1/2

[Event "NJSK 2023 Jeugd B"]
[Site "Almelo, Netherlands"]
[Date "2023.05.02"]
[Round "3.6"]
[White "Knippenberg, Hidde"]
[Black "Van Egmond, Tom"]
[Result "0-1"]
[TimeControl "90min/40moves + 30min + 30sec/move"]
[WhiteElo "1728"]
[BlackElo "1767"]

1. b3 {[%clk 01:30:58]} {[%emt 00:00:02]} e5 {[%clk 01:30:48]} {[%emt
00:00:12]} 2. Bb2 {[%clk 01:31:25]} {[%emt 00:00:03]} Nc6 {[%clk 01:31:15]}
{[%emt 00:00:03]} 3. e3 {[%clk 01:31:52]} {[%emt 00:00:03]} Nf6 {[%clk
01:31:40]} {[%emt 00:00:06]} 4. Bb5 {[%clk 01:31:39]} {[%emt 00:00:43]} Qe7
{[%clk 01:32:03]} {[%emt 00:00:06]} 5. Ne2 {[%clk 01:28:33]} {[%emt 00:03:35]}
a6 {[%clk 01:32:15]} {[%emt 00:00:18]} 6. Bxc6 {[%clk 01:28:58]} {[%emt
00:00:06]} dxc6 {[%clk 01:32:40]} {[%emt 00:00:05]} 7. O-O {[%clk 01:27:21]}
{[%emt 00:02:06]} h5 {[%clk 01:32:50]} {[%emt 00:00:20]} 8. f4 {[%clk
01:25:24]} {[%emt 00:02:28]} e4 {[%clk 01:27:42]} {[%emt 00:05:39]} 9. Qe1
{[%clk 01:23:16]} {[%emt 00:02:37]} h4 {[%clk 01:26:38]} {[%emt 00:01:34]} 10.
Na3 {[%clk 01:15:59]} {[%emt 00:07:47]} h3 {[%clk 01:16:44]} {[%emt 00:10:24]}
11. g3 {[%clk 01:15:37]} {[%emt 00:00:52]} b5 {[%clk 01:09:59]} {[%emt
00:07:15]} 12. Rd1 {[%clk 01:12:44]} {[%emt 00:03:22]} Bg4 {[%clk 01:08:27]}
{[%emt 00:02:03]} 13. c4 {[%clk 01:12:24]} {[%emt 00:00:51]} Bf3 {[%clk
01:07:19]} {[%emt 00:01:38]} 14. Rxf3 {[%clk 01:12:49]} {[%emt 00:00:04]} exf3
{[%clk 01:07:44]} {[%emt 00:00:05]} 15. Nd4 {[%clk 01:13:12]} {[%emt 00:00:07]}
Ng4 {[%clk 01:07:00]} {[%emt 00:01:14]} 16. Nxf3 {[%clk 01:12:59]} {[%emt
00:00:43]} Qe4 {[%clk 01:07:11]} {[%emt 00:00:18]} 17. Qe2 {[%clk 01:13:10]}
{[%emt 00:00:19]} b4 {[%clk 01:07:23]} {[%emt 00:00:19]} 18. d3 {[%clk
00:43:45]} {[%emt 00:29:55]} Qxe3+ {[%clk 01:05:05]} {[%emt 00:02:48]} 19.
Qxe3+ {[%clk 00:44:13]} {[%emt 00:00:02]} Nxe3 {[%clk 01:05:27]} {[%emt
00:00:07]} 20. Re1 {[%clk 00:44:32]} {[%emt 00:00:11]} O-O-O {[%clk 01:05:20]}
{[%emt 00:00:38]} 21. Rxe3 {[%clk 00:44:31]} {[%emt 00:00:31]} bxa3 {[%clk
01:05:40]} {[%emt 00:00:10]} 22. Bc3 {[%clk 00:44:46]} {[%emt 00:00:14]} f6
{[%clk 01:00:26]} {[%emt 00:05:44]} 23. d4 {[%clk 00:45:03]} {[%emt 00:00:13]}
c5 {[%clk 00:51:50]} {[%emt 00:09:07]} 24. d5 {[%clk 00:45:29]} {[%emt
00:00:04]} Bd6 {[%clk 00:40:53]} {[%emt 00:11:27]} 25. Kf2 {[%clk 00:45:05]}
{[%emt 00:00:54]} Rde8 {[%clk 00:33:44]} {[%emt 00:07:39]} 26. Ng1 {[%clk
00:44:01]} {[%emt 00:01:34]} Rxe3 {[%clk 00:30:14]} {[%emt 00:04:00]} 27. Kxe3
{[%clk 00:44:29]} {[%emt 00:00:01]} g5 {[%clk 00:08:06]} {[%emt 00:22:38]} 28.
Kf3 {[%clk 00:44:29]} {[%emt 00:00:30]} gxf4 {[%clk 00:07:15]} {[%emt
00:01:22]} 29. gxf4 {[%clk 00:44:52]} {[%emt 00:00:07]} Rh6 {[%clk 00:05:34]}
{[%emt 00:02:11]} 30. Be1 {[%clk 00:42:21]} {[%emt 00:03:00]} f5 {[%clk
00:01:21]} {[%emt 00:04:43]} 31. Ne2 {[%clk 00:42:39]} {[%emt 00:00:13]} Rg6
{[%clk 00:01:16]} {[%emt 00:00:35]} 32. Bg3 {[%clk 00:43:05]} {[%emt 00:00:04]}
Be7 {[%clk 00:01:05]} {[%emt 00:00:42]} 33. Nc1 {[%clk 00:41:15]} {[%emt
00:02:19]} c6 {[%clk 00:01:18]} {[%emt 00:00:18]} 34. dxc6 {[%clk 00:41:36]}
{[%emt 00:00:08]} Rd6 {[%clk 00:01:33]} {[%emt 00:00:14]} 35. Ke2 {[%clk
00:41:37]} {[%emt 00:00:29]} Re6+ {[%clk 00:01:54]} {[%emt 00:00:09]} 36. Kf3
{[%clk 00:40:58]} {[%emt 00:01:09]} Bf6 {[%clk 00:02:02]} {[%emt 00:00:23]} 37.
Nd3 {[%clk 00:41:19]} {[%emt 00:00:08]} Bd4 {[%clk 00:01:44]} {[%emt 00:00:49]}
38. Ne5 {[%clk 00:38:26]} {[%emt 00:03:22]} Kc7 {[%clk 00:01:48]} {[%emt
00:00:27]} 39. Ke2 {[%clk 00:38:29]} {[%emt 00:00:27]} Re7 {[%clk 00:01:37]}
{[%emt 00:00:41]} 40. Kf3 {[%clk 00:37:37]} {[%emt 00:01:22]} Re6 {[%clk
00:01:54]} {[%emt 00:00:12]} 41. Be1 {[%clk 00:32:14]} {[%emt 00:05:53]} Bg1
{[%clk 00:22:54]} {[%emt 00:09:31]} 42. Kg3 {[%clk 00:59:56]} {[%emt 00:02:48]}
Rd6 {[%clk 00:15:01]} {[%emt 00:08:23]} 43. Ba5+ {[%clk 00:57:01]} {[%emt
00:03:25]} Kc8 {[%clk 00:14:39]} {[%emt 00:00:51]} 44. c7 {[%clk 00:57:13]}
{[%emt 00:00:18]} Be3 {[%clk 00:11:23]} {[%emt 00:03:47]} 45. Kf3 {[%clk
00:56:54]} {[%emt 00:00:48]} Bd2 {[%clk 00:07:40]} {[%emt 00:04:14]} 46. Nf7
{[%clk 00:55:40]} {[%emt 00:01:44]} Rd7 {[%clk 00:07:53]} {[%emt 00:00:17]} 47.
Ne5 {[%clk 00:55:24]} {[%emt 00:00:45]} Bxa5 {[%clk 00:07:57]} {[%emt
00:00:27]} 48. Nxd7 {[%clk 00:55:42]} {[%emt 00:00:13]} Kxd7 {[%clk 00:08:23]}
{[%emt 00:00:03]} 49. c8=Q+ {[%clk 00:56:01]} {[%emt 00:00:11]} Kxc8 {[%clk
00:08:50]} {[%emt 00:00:04]} 50. Kg3 {[%clk 00:53:50]} {[%emt 00:02:41]} Bd2
{[%clk 00:08:17]} {[%emt 00:01:02]} 51. Kxh3 {[%clk 00:54:16]} {[%emt
00:00:04]} Bxf4 {[%clk 00:08:42]} {[%emt 00:00:04]} 52. Kg2 {[%clk 00:54:43]}
{[%emt 00:00:06]} Kd7 {[%clk 00:08:43]} {[%emt 00:00:27]} 53. h4 {[%clk
00:54:58]} {[%emt 00:00:14]} Ke6 {[%clk 00:08:49]} {[%emt 00:00:25]} 0-1

[Event "NJSK 2023 Jeugd B"]
[Site "Almelo, Netherlands"]
[Date "2023.05.02"]
[Round "3.7"]
[White "Bakija, Alan"]
[Black "Guillaumond, Matthieu"]
[Result "1-0"]
[TimeControl "90min/40moves + 30min + 30sec/move"]
[WhiteElo "1999"]
[BlackElo "2010"]

1. c4 {[%clk 01:30:57]} {[%emt 00:00:01]} Nf6 {[%clk 01:30:57]} {[%emt
00:00:04]} 2. g3 {[%clk 01:31:23]} {[%emt 00:00:05]} g6 {[%clk 01:31:19]}
{[%emt 00:00:07]} 3. Bg2 {[%clk 01:31:49]} {[%emt 00:00:03]} Bg7 {[%clk
01:31:42]} {[%emt 00:00:08]} 4. Nc3 {[%clk 01:32:14]} {[%emt 00:00:04]} O-O
{[%clk 01:32:00]} {[%emt 00:00:13]} 5. d4 {[%clk 01:32:40]} {[%emt 00:00:03]}
d6 {[%clk 01:31:24]} {[%emt 00:01:08]} 6. h3 {[%clk 01:32:59]} {[%emt
00:00:10]} c6 {[%clk 01:30:44]} {[%emt 00:01:11]} 7. e4 {[%clk 01:33:12]}
{[%emt 00:00:16]} e5 {[%clk 01:30:11]} {[%emt 00:01:04]} 8. Nf3 {[%clk
01:33:33]} {[%emt 00:00:07]} exd4 {[%clk 01:29:23]} {[%emt 00:01:18]} 9. Nxd4
{[%clk 01:33:55]} {[%emt 00:00:08]} Re8 {[%clk 01:29:28]} {[%emt 00:00:26]} 10.
O-O {[%clk 01:34:13]} {[%emt 00:00:11]} Be6 {[%clk 01:18:43]} {[%emt 00:11:16]}
11. b3 {[%clk 01:27:04]} {[%emt 00:07:38]} d5 {[%clk 01:09:17]} {[%emt
00:09:57]} 12. cxd5 {[%clk 01:16:55]} {[%emt 00:10:39]} cxd5 {[%clk 01:09:27]}
{[%emt 00:00:20]} 13. e5 {[%clk 01:13:55]} {[%emt 00:03:29]} Nfd7 {[%clk
01:09:15]} {[%emt 00:00:43]} 14. f4 {[%clk 01:14:01]} {[%emt 00:00:24]} Nc6
{[%clk 01:06:12]} {[%emt 00:03:34]} 15. Nxe6 {[%clk 00:56:53]} {[%emt
00:17:37]} fxe6 {[%clk 01:06:30]} {[%emt 00:00:12]} 16. Bb2 {[%clk 00:56:39]}
{[%emt 00:00:44]} Rc8 {[%clk 01:03:49]} {[%emt 00:03:11]} 17. Kh2 {[%clk
00:52:01]} {[%emt 00:05:07]} a6 {[%clk 01:01:40]} {[%emt 00:02:40]} 18. Qd2
{[%clk 00:50:42]} {[%emt 00:01:49]} b5 {[%clk 00:55:47]} {[%emt 00:06:23]} 19.
Rad1 {[%clk 00:50:05]} {[%emt 00:01:06]} Rc7 {[%clk 00:50:15]} {[%emt
00:06:03]} 20. h4 {[%clk 00:46:11]} {[%emt 00:04:23]} Nc5 {[%clk 00:39:02]}
{[%emt 00:11:44]} 21. Qe2 {[%clk 00:31:57]} {[%emt 00:14:43]} Kh8 {[%clk
00:33:31]} {[%emt 00:06:02]} 22. Ne4 {[%clk 00:27:48]} {[%emt 00:04:38]} Nxe4
{[%clk 00:32:47]} {[%emt 00:01:14]} 23. Bxe4 {[%clk 00:28:15]} {[%emt
00:00:04]} Qe7 {[%clk 00:31:33]} {[%emt 00:01:44]} 24. Bb1 {[%clk 00:27:35]}
{[%emt 00:01:09]} Qf7 {[%clk 00:29:34]} {[%emt 00:02:30]} 25. Kg2 {[%clk
00:19:43]} {[%emt 00:08:22]} h5 {[%clk 00:22:07]} {[%emt 00:07:57]} 26. g4
{[%clk 00:13:15]} {[%emt 00:06:58]} Rg8 {[%clk 00:20:43]} {[%emt 00:01:54]} 27.
Kh1 {[%clk 00:08:18]} {[%emt 00:05:27]} Ne7 {[%clk 00:11:01]} {[%emt 00:10:12]}
28. Rf2 {[%clk 00:07:16]} {[%emt 00:01:32]} hxg4 {[%clk 00:08:49]} {[%emt
00:02:42]} 29. Qxg4 {[%clk 00:07:40]} {[%emt 00:00:06]} Nf5 {[%clk 00:09:09]}
{[%emt 00:00:10]} 30. Qh3 {[%clk 00:06:28]} {[%emt 00:01:41]} Bh6 {[%clk
00:07:25]} {[%emt 00:02:15]} 31. Rg1 {[%clk 00:06:25]} {[%emt 00:00:33]} Rcc8
{[%clk 00:07:04]} {[%emt 00:00:51]} 32. Rg4 {[%clk 00:05:00]} {[%emt 00:01:53]}
d4 {[%clk 00:05:59]} {[%emt 00:01:38]} 33. Rg1 {[%clk 00:03:42]} {[%emt
00:01:45]} Rcd8 {[%clk 00:04:46]} {[%emt 00:01:45]} 34. Bc1 {[%clk 00:01:50]}
{[%emt 00:02:21]} Rg7 {[%clk 00:04:11]} {[%emt 00:01:05]} 35. Rgg2 {[%clk
00:00:35]} {[%emt 00:01:45]} Rh7 {[%clk 00:02:56]} {[%emt 00:01:45]} 36. Rh2
{[%clk 00:01:04]} {[%emt 00:00:01]} Qb7+ {[%clk 00:01:25]} {[%emt 00:02:02]} 37.
Qf3 {[%clk 00:00:59]} {[%emt 00:00:35]} Qe7 {[%clk 00:00:55]} {[%emt 00:01:00]}
38. h5 {[%clk 00:00:44]} {[%emt 00:00:45]} gxh5 {[%emt 00:00:55]} 39. Rxh5
{[%clk 00:00:58]} {[%emt 00:00:14]} Rf8 {[%clk 00:00:41]} {[%emt 00:00:21]} 40.
Rfh2 {[%clk 00:01:04]} {[%emt 00:00:24]} Qg7 {[%clk 00:00:38]} {[%emt
00:00:33]} 41. Rg2 {[%clk 00:25:41]} {[%emt 00:05:52]} Qf7 {[%clk 00:17:14]}
{[%emt 00:13:54]} 42. Qh3 {[%clk 00:23:46]} {[%emt 00:02:21]} Bxf4 {[%clk
00:09:44]} {[%emt 00:08:03]} 43. Rxh7+ {[%clk 00:23:56]} {[%emt 00:00:20]} Qxh7
{[%clk 00:10:12]} {[%emt 00:00:02]} 44. Qxh7+ {[%clk 00:24:14]} {[%emt
00:00:12]} Kxh7 {[%emt 00:00:02]} 45. Bxf4 {[%clk 00:24:22]} {[%emt 00:00:21]}
Kh8 {[%clk 00:10:38]} {[%emt 00:00:32]} 46. Bxf5 {[%clk 00:21:43]} {[%emt
00:03:10]} Rxf5 {[%clk 00:10:24]} {[%emt 00:00:44]} 47. Bg3 {[%clk 00:17:09]}
{[%emt 00:05:05]} Kh7 {[%clk 00:07:22]} {[%emt 00:03:30]} 48. Rd2 {[%clk
00:17:31]} {[%emt 00:00:09]} Rf1+ {[%clk 00:05:33]} {[%emt 00:02:19]} 49. Kg2
{[%emt 00:00:14]} Ra1 {[%clk 00:05:56]} 50. Bf2 {[%clk 00:17:58]} {[%emt
00:00:26]} d3 {[%clk 00:06:11]} {[%emt 00:00:15]} 51. Kf3 {[%clk 00:18:02]}
{[%emt 00:00:26]} Kg6 {[%clk 00:06:14]} {[%emt 00:00:27]} 52. Ke4 {[%emt
00:01:00]} Rh1 {[%clk 00:05:29]} {[%emt 00:00:29]} 53. Rxd3 {[%clk 00:18:19]}
{[%emt 00:00:28]} Rh2 {[%clk 00:05:26]} {[%emt 00:00:34]} 54. Rd2 {[%clk
00:18:41]} {[%emt 00:00:08]} Rg2 {[%clk 00:05:44]} {[%emt 00:00:11]} 55. Be3
{[%clk 00:19:02]} {[%emt 00:00:10]} Rg4+ {[%clk 00:05:47]} {[%emt 00:00:27]} 56.
Bf4 {[%clk 00:19:21]} {[%emt 00:00:09]} Rg1 {[%clk 00:06:01]} {[%emt 00:00:18]}
57. Rd6 {[%clk 00:19:40]} {[%emt 00:00:10]} Re1+ {[%clk 00:05:17]} {[%emt
00:01:16]} 58. Be3 {[%emt 00:00:25]} Kf7 {[%clk 00:05:26]} 59. Rxa6 {[%clk
00:20:28]} {[%emt 00:00:08]} Re2 {[%clk 00:05:28]} {[%emt 00:00:27]} 60. Ra7+
{[%clk 00:20:52]} {[%emt 00:00:06]} Kg6 {[%clk 00:05:49]} {[%emt 00:00:09]} 61.
a4 {[%clk 00:21:14]} {[%emt 00:00:08]} bxa4 {[%clk 00:05:34]} {[%emt 00:00:46]}
62. bxa4 {[%clk 00:21:37]} {[%emt 00:00:06]} Ra2 {[%clk 00:05:54]} {[%emt
00:00:09]} 63. a5 {[%clk 00:22:02]} {[%emt 00:00:07]} Ra4+ {[%clk 00:05:36]}
{[%emt 00:00:47]} 64. Bd4 {[%clk 00:22:28]} {[%emt 00:00:04]} Ra2 {[%clk
00:05:32]} {[%emt 00:00:33]} 65. a6 {[%clk 00:22:53]} {[%emt 00:00:06]} Rh2
{[%clk 00:05:44]} {[%emt 00:00:18]} 66. Be3 {[%clk 00:23:10]} {[%emt 00:00:14]}
Ra2 {[%clk 00:05:46]} {[%emt 00:00:28]} 67. Ra8 {[%clk 00:23:35]} {[%emt
00:00:05]} Kg7 {[%clk 00:05:56]} {[%emt 00:00:19]} 68. a7 {[%clk 00:23:56]}
{[%emt 00:00:10]} 1-0